fUST/lending_fUST_20250505
["ID","MTS","AMOUNT","RATE_DAILY","PERIOD"]
[359864943,1746379843552,-54166.28763735,0.000389,30]
[359864945,1746379843564,-683.20353383,0.000389,30]
[359864947,1746379843575,-1055.97446617,0.000389,30]
[359865009,1746379846511,-9178.71304751,0.000389,30]
[359865085,1746380738130,-184.300417,0.00027397,2]
[359865086,1746380738151,-208.71722338,0.00029576,2]
[359865087,1746380738172,-179.92802879,0.00031276,7]
[359865088,1746380738192,-252.35872627,0.00031781,2]
[359865089,1746380828100,-247.64127373,0.00031781,2]
[359865090,1746380828122,-184.300417,0.00033165,2]
[359865091,1746380828142,-205.271268,0.00035336,2]
[359865092,1746380828163,-152.0,0.00035467,2]
[359865093,1746380828184,-151.0,0.00036011,2]
[359865094,1746380828204,-160.0,0.00036012,2]
[359865095,1746380828225,-1600.0,0.00036031,3]
[359865096,1746380828245,-300.0,0.00036031,3]
[359865097,1746380828266,-400.0,0.00036031,2]
[359865098,1746380828285,-2927.2060489,0.00036032,2]
[359865099,1746380828305,-643.9655832,0.00036425,2]
[359865100,1746380846136,-15232.11857125,0.00036425,2]
[359865101,1746380846157,-213.76979786,0.00036426,2]
[359865102,1746380846177,-904.05756124,0.000368,2]
[359865103,1746380846200,-214.97047156,0.000369,35]
[359865104,1746380846220,-345.0,0.00037046,3]
[359865105,1746380846241,-364.61317815,0.00037049,4]
[359865167,1746381032456,-602.70504083,0.00034325,2]
[359865168,1746381032467,-5000.0,0.00034367,2]
[359865170,1746381032476,-500.0,0.00036083,60]
[359865172,1746381032486,-869.5243908,0.00036324,120]
[359865173,1746381032496,-214.97047154,0.000369,35]
[359865174,1746381032505,-1119.1232892,0.00037049,4]
[359865175,1746381032516,-1200.0,0.00037357,3]
[359865176,1746381032526,-400.0,0.00038132,2]
[359865177,1746381032539,-1234.58249075,0.00038133,2]
[359865178,1746381032553,-127.78629339,0.00038133,2]
[359865179,1746381032564,-310.81730675,0.000383,2]
[359865180,1746381032575,-441.64321008,0.00038312,2]
[359865181,1746381032587,-223.19139922,0.00038399,15]
[359865182,1746381032600,-178.20131547,0.00038399,15]
[359865183,1746381032611,-500.0,0.00038399,15]
[359865184,1746381032622,-275.02207991,0.00038399,15]
[359865186,1746381032633,-200.0,0.00038399,7]
[359865188,1746381032646,-500.0,0.00038399,15]
[359865191,1746381032657,-558.99800413,0.00038399,15]
[359865193,1746381032668,-2601.0,0.000384,3]
[359865195,1746381032680,-2601.0,0.000384,3]
[359865197,1746381032692,-2601.0,0.000384,3]
[359865199,1746381032702,-2601.0,0.000384,3]
[359865201,1746381032714,-2601.0,0.000384,3]
[359865203,1746381032724,-2601.0,0.000384,3]
[359865204,1746381032734,-2601.0,0.000384,3]
[359865205,1746381032745,-2601.0,0.000384,3]
[359865206,1746381032887,-2601.0,0.000384,3]
[359865207,1746381032897,-2601.0,0.000384,3]
[359865208,1746381032906,-160.0,0.000384,3]
[359865209,1746381032915,-160.0,0.000384,3]
[359865210,1746381032925,-441.64321008,0.00038454,2]
[359865211,1746381032934,-310.81730672,0.00038532,2]
[359865212,1746381032943,-256.53818316,0.00038667,2]
[359865213,1746381032954,-441.64321008,0.00038763,2]
[359865214,1746381032964,-310.81730672,0.00038764,2]
[359865215,1746381032975,-409.13954856,0.00038804,2]
[359865216,1746381032984,-409.13954854,0.00038825,2]
[359865217,1746381032994,-409.13954854,0.00038846,2]
[359865218,1746381033003,-409.13954854,0.00038867,2]
[359865219,1746381033013,-409.13954854,0.00038888,2]
[359865220,1746381033022,-311.45,0.00038894,3]
[359865221,1746381033032,-545.0,0.00038894,2]
[359865222,1746381033043,-2244.0,0.00038894,2]
[359865223,1746381033053,-707.0,0.00038894,2]
[359865224,1746381033064,-699.8319348,0.00038894,3]
[359865225,1746381033075,-999.0,0.00038899,120]
[359865226,1746381033085,-12701.65360699,0.000389,30]
[359865243,1746381038469,-4359.16887833,0.000389,30]
[359865244,1746381038575,-672.37423111,0.000389,30]
[359865331,1746381046598,-403.0,0.00038894,2]
[359865332,1746381046608,-17182.62459871,0.000389,30]
[359865333,1746381046618,-35000.0,0.000389,6]
[359865334,1746381046628,-160.0,0.000389,58]
[359865335,1746381046638,-502.0,0.000389,30]
[359865336,1746381046647,-150.0,0.000389,2]
[359865337,1746381046657,-187.141237,0.000389,2]
[359865338,1746381046666,-187.141237,0.000389,2]
[359865339,1746381046675,-253.92682173,0.00038904,2]
[359865340,1746381046684,-3876.6149794,0.00038904,3]
[359865341,1746381046694,-400.0,0.00038904,15]
[359865342,1746381046703,-400.0,0.00038904,15]
[359865343,1746381046712,-400.0,0.00038904,15]
[359865344,1746381046731,-400.0,0.00038904,15]
[359865345,1746381046742,-400.0,0.00038904,15]
[359865346,1746381046751,-400.0,0.00038904,15]
[359865347,1746381046762,-302.08398818,0.00038904,15]
[359865348,1746381046771,-400.0,0.00038904,15]
[359865349,1746381046781,-464.0,0.00038904,15]
[359865350,1746381046791,-400.0,0.00038904,15]
[359865351,1746381046801,-400.0,0.00038904,15]
[359865352,1746381046810,-400.0,0.00038904,15]
[359865353,1746381046820,-400.0,0.00038904,15]
[359865354,1746381046829,-462.74,0.00038904,15]
[359865355,1746381046839,-189.29116691,0.00038904,15]
[359865356,1746381046848,-400.0,0.00038904,15]
[359865357,1746381046858,-400.0,0.00038904,15]
[359865358,1746381046868,-400.0,0.00038904,15]
[359865359,1746381046877,-258.53,0.00038904,15]
[359865360,1746381046887,-400.0,0.00038904,15]
[359865361,1746381046896,-400.0,0.00038904,15]
[359865362,1746381046906,-400.0,0.00038904,15]
[359865363,1746381046915,-400.0,0.00038904,15]
[359865364,1746381046925,-400.0,0.00038904,15]
[359865365,1746381046935,-483.64,0.00038904,15]
[359865366,1746381046945,-400.0,0.00038904,15]
[359865367,1746381046955,-258.10617217,0.00038904,15]
[359865368,1746381046964,-400.0,0.00038904,15]
[359865369,1746381046974,-400.0,0.00038904,15]
[359865370,1746381046986,-400.0,0.00038904,15]
[359865371,1746381046996,-400.0,0.00038904,15]
[359865372,1746381047006,-400.0,0.00038904,15]
[359865373,1746381047015,-500.0,0.00038904,15]
[359865374,1746381047025,-400.0,0.00038904,15]
[359865375,1746381047035,-500.0,0.00038904,15]
[359865376,1746381047045,-400.0,0.00038904,15]
[359865377,1746381047055,-400.0,0.00038904,15]
[359865378,1746381047067,-500.0,0.00038904,15]
[359865379,1746381047078,-500.0,0.00038904,15]
[359865380,1746381047088,-151.0,0.00038904,15]
[359865381,1746381047097,-151.0,0.00038904,15]
[359865382,1746381047106,-500.0,0.00038904,15]
[359865383,1746381047116,-151.0,0.00038904,15]
[359865384,1746381047126,-500.0,0.00038904,15]
[359865385,1746381047136,-471.64,0.00038904,15]
[359865386,1746381047145,-500.0,0.00038904,15]
[359865387,1746381047155,-500.0,0.00038904,15]
[359865388,1746381047164,-429.2321733,0.00038904,15]
[359865389,1746381047173,-501.40281923,0.00038904,15]
[359865390,1746381047183,-400.0,0.00038904,15]
[359865391,1746381047193,-400.0,0.00038904,15]
[359865392,1746381047202,-400.0,0.00038904,15]
[359865393,1746381047212,-519.9,0.00038904,15]
[359865394,1746381047221,-400.0,0.00038904,15]
[359865395,1746381047231,-400.0,0.00038904,15]
[359865396,1746381047240,-400.0,0.00038904,15]
[359865397,1746381047251,-400.0,0.00038904,15]
[359865398,1746381047261,-400.0,0.00038904,15]
[359865399,1746381047272,-245.44,0.00038904,15]
[359865400,1746381047282,-400.0,0.00038904,15]
[359865401,1746381047291,-163.69893527,0.00038904,15]
[359865402,1746381047301,-500.0,0.00038904,15]
[359865403,1746381047312,-364.09303456,0.00038904,15]
[359865404,1746381047323,-500.0,0.00038904,15]
[359865405,1746381047335,-400.0,0.00038904,15]
[359865406,1746381047344,-400.0,0.00038904,15]
[359865407,1746381047354,-500.0,0.00038904,15]
[359865408,1746381047364,-400.0,0.00038904,15]
[359865409,1746381047373,-400.0,0.00038904,15]
[359865410,1746381047383,-400.0,0.00038904,15]
[359865411,1746381047392,-359.4538353,0.00038904,15]
[359865412,1746381047402,-400.0,0.00038904,15]
[359865413,1746381047412,-400.0,0.00038904,15]
[359865414,1746381047423,-400.0,0.00038904,15]
[359865415,1746381047432,-400.0,0.00038904,15]
[359865416,1746381047442,-162.43234244,0.00038904,15]
[359865417,1746381047451,-400.0,0.00038904,15]
[359865418,1746381047462,-400.0,0.00038904,15]
[359865419,1746381047471,-400.0,0.00038904,15]
[359865420,1746381047481,-400.0,0.00038904,15]
[359865421,1746381047490,-400.0,0.00038904,15]
[359865422,1746381047501,-400.0,0.00038904,15]
[359865423,1746381047511,-291.54470758,0.00038904,15]
[359865424,1746381047520,-210.15,0.00038904,15]
[359865425,1746381047530,-27.22960182,0.00038904,15]
[359865426,1746381047581,-285.958,0.00038904,15]
[359865429,1746381259412,150.0,0.000221,2]
[359865442,1746381499588,151.0,0.000215,2]
[359865445,1746381956134,-500.0,0.00025205,2]
[359865446,1746381956154,-69.54789734,0.00025205,2]
[359865450,1746382032095,-145.38108208,0.00025205,2]
[359865451,1746382032117,-167.41840753,0.00025205,2]
[359865452,1746382032140,-161.02698938,0.00025205,2]
[359865453,1746382032160,-197.069187,0.00027397,2]
[359865454,1746382032180,-172.685,0.0003,2]
[359865455,1746382032200,-500.0,0.00031781,2]
[359865456,1746382032220,-197.069187,0.00033165,2]
[359865457,1746382032240,-160.0,0.00034223,2]
[359865458,1746382032260,-300.0,0.00034223,3]
[359865459,1746382032281,-460.46364429,0.00034224,3]
[359865460,1746382035143,-1139.53635571,0.00034224,3]
[359865461,1746382035165,-4161.28433531,0.00034225,2]
[359865462,1746382035185,-1852.57281825,0.00034367,2]
[359865463,1746382039097,-152.19974355,0.00025204,6]
[359865471,1746382155126,-720.1493159,0.00025204,6]
[359865473,1746382164058,937.17278884,0.00032267,2]
[359865494,1746382232647,-2848.20928251,0.00034367,2]
[359865496,1746382232660,-1462.0008184,0.00035117,2]
[359865498,1746382232670,-400.0,0.00035185,2]
[359865500,1746382232679,-3100.7493052,0.00035186,2]
[359865502,1746382232689,-2295.57425695,0.00035999,2]
[359865504,1746382232699,-500.0,0.00035999,15]
[359865506,1746382232709,-500.0,0.00035999,15]
[359865509,1746382232718,-500.0,0.00035999,15]
[359865511,1746382232728,-500.0,0.00035999,15]
[359865513,1746382232738,-500.0,0.00035999,15]
[359865515,1746382232748,-500.0,0.00035999,15]
[359865517,1746382232757,-500.0,0.00035999,15]
[359865519,1746382232767,-500.0,0.00035999,15]
[359865521,1746382232777,-438.84085466,0.00035999,15]
[359865523,1746382232786,-500.0,0.00035999,15]
[359865525,1746382232796,-500.0,0.00035999,15]
[359865527,1746382232806,-500.0,0.00035999,15]
[359865528,1746382232815,-500.0,0.00035999,15]
[359865529,1746382232825,-500.0,0.00035999,15]
[359865530,1746382232835,-500.0,0.00035999,15]
[359865531,1746382232844,-500.0,0.00035999,15]
[359865532,1746382232854,-500.0,0.00035999,15]
[359865533,1746382232864,-500.0,0.00035999,15]
[359865534,1746382232874,-500.0,0.00035999,15]
[359865535,1746382232883,-500.0,0.00035999,15]
[359865536,1746382232893,-500.0,0.00035999,15]
[359865537,1746382232902,-500.0,0.00035999,15]
[359865538,1746382232912,-500.0,0.00035999,15]
[359865539,1746382232921,-500.0,0.00035999,15]
[359865540,1746382232931,-28.7419166,0.00035999,15]
[359865622,1746383151133,-179.9460162,0.00031276,7]
[359865623,1746383151156,-147.50777379,0.00033899,2]
[359865624,1746383231095,-211.94850064,0.00025205,2]
[359865625,1746383232099,-444.23055724,0.00025205,2]
[359865626,1746383232122,-503.29236273,0.00028,2]
[359865627,1746383232145,-834.18703763,0.00033899,2]
[359865628,1746383232169,-207.64966284,0.000359,33]
[359865629,1746383232191,-362.79371654,0.00035974,2]
[359865630,1746383244124,-250.0,0.00035979,2]
[359865631,1746383244146,-266.0203103,0.00036012,2]
[359865632,1746383244168,-388.0,0.00036984,3]
[359865633,1746383244311,-300.0,0.00036985,3]
[359865634,1746383244331,-1600.0,0.00036985,3]
[359865635,1746383244351,-361.2095701,0.00036986,30]
[359865636,1746383244372,-4062.42378291,0.00036986,2]
[359865637,1746383244392,-362.2865337,0.00037014,30]
[359865638,1746383244412,-362.2865337,0.00037014,30]
[359865639,1746383244433,-362.2865337,0.00037014,30]
[359865640,1746383244453,-1145.3811237,0.00037049,4]
[359865641,1746383244473,-427.4433552,0.00037604,2]
[359865642,1746383244493,-838.02014143,0.00038,120]
[359865643,1746383244521,-152.1157013,0.00038,120]
[359865665,1746383363131,-151.0,0.00024,14]
[359865666,1746383363152,-642.31782889,0.00025,2]
[359865667,1746383369075,-26.17939068,0.00025,2]
[359865668,1746383369096,-775.42438347,0.00026,30]
[359865669,1746383369119,-313.73916419,0.00027,3]
[359865670,1746383369139,-313.73916419,0.00027,3]
[359865702,1746383431890,-911.13614939,0.00034949,2]
[359865703,1746383431900,-207.64966284,0.000369,35]
[359865704,1746383431910,-916.3048989,0.00037049,4]
[359865705,1746383431921,-9.86415727,0.00038,120]
[359865706,1746383431930,-179.3426672,0.00038026,120]
[359865707,1746383431939,-300.0,0.00038125,3]
[359865708,1746383431949,-163.402257,0.00038126,15]
[359865709,1746383431960,-663.25385545,0.00038573,2]
[359865710,1746383431970,-400.0,0.00038613,5]
[359865711,1746383431979,-500.0,0.00038755,15]
[359865712,1746383431988,-500.0,0.00038755,15]
[359865713,1746383431997,-500.0,0.00038755,15]
[359865714,1746383432006,-500.0,0.00038755,15]
[359865715,1746383432015,-500.0,0.00038755,15]
[359865716,1746383432024,-500.0,0.00038755,15]
[359865717,1746383432033,-500.0,0.00038755,15]
[359865718,1746383432042,-500.0,0.00038755,15]
[359865719,1746383432051,-500.0,0.00038755,15]
[359865720,1746383432061,-500.0,0.00038755,15]
[359865721,1746383432070,-500.0,0.00038755,15]
[359865722,1746383432079,-500.0,0.00038755,15]
[359865723,1746383432088,-500.0,0.00038755,15]
[359865724,1746383432098,-500.0,0.00038755,15]
[359865725,1746383432107,-500.0,0.00038755,15]
[359865726,1746383432116,-500.0,0.00038755,15]
[359865727,1746383432125,-500.0,0.00038755,15]
[359865728,1746383432134,-500.0,0.00038755,15]
[359865729,1746383432143,-500.0,0.00038755,15]
[359865730,1746383432153,-237.1058921,0.00038755,15]
[359865731,1746383432162,-500.0,0.00038755,15]
[359865732,1746383432171,-500.0,0.00038755,15]
[359865733,1746383432180,-500.0,0.00038755,15]
[359865734,1746383432193,-500.0,0.00038755,15]
[359865735,1746383432201,-500.0,0.00038755,15]
[359865736,1746383432211,-500.0,0.00038755,15]
[359865737,1746383432220,-500.0,0.00038755,15]
[359865738,1746383432230,-500.0,0.00038755,15]
[359865739,1746383432240,-500.0,0.00038755,15]
[359865740,1746383432249,-500.0,0.00038755,15]
[359865741,1746383432270,-184.541,0.00038759,52]
[359865742,1746383432280,-1938.3074897,0.0003876,3]
[359865743,1746383432289,-11371.1880103,0.0003876,30]
[359865744,1746383432303,-5283.46821428,0.0003876,30]
[359865745,1746383432315,-619.46867816,0.0003876,30]
[359865746,1746383432327,-14326.72484777,0.0003876,30]
[359865747,1746383432337,-154.36259486,0.00038804,2]
[359865748,1746383432346,-500.0,0.00038894,2]
[359865749,1746383432356,-150.0,0.00038894,2]
[359865750,1746383432365,-194.15993737,0.00038894,3]
[359865761,1746383437811,-707.0,0.00038775,2]
[359865762,1746383437821,-600.22531912,0.00038893,15]
[359865763,1746383437831,-156.23397945,0.00038893,15]
[359865764,1746383437841,-316.13418178,0.00038894,3]
[359865765,1746383437851,-160.0,0.000389,58]
[359865766,1746383437861,-150.0,0.000389,2]
[359865767,1746383437870,-999.0,0.00038903,120]
[359865768,1746383437880,-400.16175138,0.00038904,15]
[359865769,1746383437889,-519.59724508,0.00038904,15]
[359865770,1746383437899,-400.0,0.00038904,15]
[359865771,1746383437908,-400.0,0.00038904,15]
[359865772,1746383437917,-400.0,0.00038904,15]
[359865773,1746383437927,-400.0,0.00038904,15]
[359865774,1746383437936,-400.0,0.00038904,15]
[359865775,1746383437946,-400.0,0.00038904,15]
[359865776,1746383437956,-400.0,0.00038904,15]
[359865777,1746383437965,-400.0,0.00038904,15]
[359865778,1746383437975,-479.29229136,0.00038904,15]
[359865779,1746383437985,-400.0,0.00038904,15]
[359865780,1746383437994,-400.0,0.00038904,15]
[359865781,1746383438004,-400.0,0.00038904,15]
[359865782,1746383438014,-400.0,0.00038904,15]
[359865783,1746383438023,-400.0,0.00038904,15]
[359865784,1746383438034,-400.0,0.00038904,15]
[359865785,1746383438044,-400.0,0.00038904,15]
[359865786,1746383438054,-246.02,0.00038904,15]
[359865787,1746383438065,-400.0,0.00038904,15]
[359865788,1746383438075,-400.0,0.00038904,15]
[359865789,1746383438086,-400.0,0.00038904,15]
[359865790,1746383438095,-400.0,0.00038904,15]
[359865791,1746383438105,-300.70061236,0.00038904,15]
[359866049,1746383442967,-99.29938764,0.00038904,15]
[359866051,1746383442977,-224.2108023,0.00038904,15]
[359866053,1746383442988,-1.14885264,0.00038904,15]
[359866056,1746383443000,-398.85114736,0.00038904,15]
[359866058,1746383443011,-89.38200529,0.00038904,15]
[359866137,1746384244848,-270.54780166,0.00024456,120]
[359866138,1746384249176,-471.31051503,0.00024456,120]
[359866139,1746384252952,-265.00542295,0.00024456,120]
[359866140,1746384258864,-13.65790371,0.00024456,120]
[359866143,1746384453224,-250.0,0.00024853,2]
[359866144,1746384453248,-159.13584981,0.00024853,2]
[359866145,1746384453270,-403.6105873,0.00024953,7]
[359866146,1746384453291,-178.35342632,0.00025105,2]
[359866147,1746384453313,-1214.25315715,0.00025205,2]
[359866149,1746384543820,-377.51573122,0.00024666,2]
[359866150,1746384546350,-5549.74717788,0.00024666,2]
[359866151,1746384546371,-250.0,0.00024753,2]
[359866152,1746384546391,-643.4987796,0.00024781,2]
[359866153,1746384546411,-437.2574115,0.0002504,2]
[359866154,1746384546431,-457.5572504,0.00025205,2]
[359866155,1746384546450,-159.13584981,0.0002584,2]
[359866156,1746384546470,-300.0,0.00026039,2]
[359866157,1746384546497,-500.0,0.00026039,2]
[359866158,1746384546518,-500.0,0.00026039,2]
[359866159,1746384546539,-329.46373509,0.00026039,2]
[359866160,1746384546560,-500.0,0.00026039,2]
[359866161,1746384546580,-500.0,0.00026039,2]
[359866162,1746384546603,-155.55240919,0.00026039,2]
[359866163,1746384546624,-309.50798866,0.00026039,2]
[359866164,1746384546654,-500.0,0.00026039,2]
[359866165,1746384546675,-500.0,0.00026039,2]
[359866166,1746384546698,-500.0,0.00026039,2]
[359866167,1746384546727,-500.0,0.00026039,2]
[359866168,1746384546750,-500.0,0.00026039,2]
[359866169,1746384546771,-253.36038881,0.00026039,2]
[359866170,1746384546800,-500.0,0.00026039,2]
[359866171,1746384546820,-500.0,0.00026039,2]
[359866172,1746384546842,-500.0,0.00026039,2]
[359866173,1746384546863,-500.0,0.00026039,2]
[359866174,1746384546892,-500.0,0.00026039,2]
[359866175,1746384546913,-500.0,0.00026039,2]
[359866176,1746384546937,-500.0,0.00026039,2]
[359866177,1746384546967,-500.0,0.00026039,2]
[359866178,1746384546994,-500.0,0.00026039,2]
[359866179,1746384547015,-500.0,0.00026039,2]
[359866180,1746384547037,-500.0,0.00026039,2]
[359866181,1746384547068,-500.0,0.00026039,2]
[359866182,1746384547092,-500.0,0.00026039,2]
[359866183,1746384547115,-500.0,0.00026039,2]
[359866184,1746384547145,-500.0,0.00026039,2]
[359866185,1746384547167,-401.33280207,0.00026039,2]
[359866186,1746384547194,-500.0,0.00026039,2]
[359866187,1746384547214,-500.0,0.00026039,2]
[359866188,1746384547243,-500.0,0.00026039,2]
[359866189,1746384547264,-500.0,0.00026039,2]
[359866190,1746384547293,-500.0,0.00026039,2]
[359866191,1746384547321,-500.0,0.00026039,2]
[359866192,1746384547349,-500.0,0.00026039,2]
[359866193,1746384547377,-500.0,0.00026039,2]
[359866194,1746384547404,-500.0,0.00026039,2]
[359866195,1746384547431,-500.0,0.00026039,2]
[359866196,1746384547459,-500.0,0.00026039,2]
[359866197,1746384547484,-500.0,0.00026039,2]
[359866198,1746384547509,-500.0,0.00026039,2]
[359866199,1746384547535,-500.0,0.00026039,2]
[359866200,1746384547560,-500.0,0.00026039,2]
[359866201,1746384547587,-500.0,0.00026039,2]
[359866202,1746384547614,-500.0,0.00026039,2]
[359866203,1746384547644,-500.0,0.00026039,2]
[359866204,1746384547678,-500.0,0.00026039,2]
[359866205,1746384547705,-500.0,0.00026039,2]
[359866206,1746384547733,-500.0,0.00026039,2]
[359866207,1746384547762,-500.0,0.00026039,2]
[359866208,1746384547792,-500.0,0.00026039,2]
[359866209,1746384547821,-500.0,0.00026039,2]
[359866210,1746384547848,-500.0,0.00026039,2]
[359866211,1746384547875,-500.0,0.00026039,2]
[359866212,1746384548011,-500.0,0.00026039,2]
[359866213,1746384548040,-500.0,0.00026039,2]
[359866214,1746384548072,-500.0,0.00026039,2]
[359866215,1746384548103,-500.0,0.00026039,2]
[359866216,1746384548134,-500.0,0.00026039,2]
[359866217,1746384548162,-500.0,0.00026039,2]
[359866218,1746384548190,-500.0,0.00026039,2]
[359866219,1746384548219,-500.0,0.00026039,2]
[359866220,1746384548248,-517.89201309,0.00026039,2]
[359866221,1746384548277,-500.0,0.00026039,2]
[359866222,1746384548305,-500.0,0.00026039,2]
[359866223,1746384548334,-500.0,0.00026039,2]
[359866224,1746384548363,-500.0,0.00026039,2]
[359866225,1746384548390,-500.0,0.00026039,2]
[359866226,1746384548418,-500.0,0.00026039,2]
[359866227,1746384548446,-500.0,0.00026039,2]
[359866228,1746384548475,-500.0,0.00026039,2]
[359866229,1746384548503,-500.0,0.00026039,2]
[359866230,1746384548531,-500.0,0.00026039,2]
[359866231,1746384548559,-500.0,0.00026039,2]
[359866232,1746384548588,-500.0,0.00026039,2]
[359866233,1746384548616,-500.0,0.00026039,2]
[359866234,1746384548646,-500.0,0.00026039,2]
[359866235,1746384548672,-500.0,0.00026039,2]
[359866236,1746384548701,-500.0,0.00026039,2]
[359866237,1746384548728,-500.0,0.00026039,2]
[359866238,1746384548756,-500.0,0.00026039,2]
[359866239,1746384548783,-500.0,0.00026039,2]
[359866240,1746384548810,-500.0,0.00026039,2]
[359866241,1746384548838,-500.0,0.00026039,2]
[359866242,1746384548866,-500.0,0.00026039,2]
[359866243,1746384548894,-500.0,0.00026039,2]
[359866244,1746384548922,-500.0,0.00026039,2]
[359866245,1746384548949,-500.0,0.00026039,2]
[359866246,1746384548975,-500.0,0.00026039,2]
[359866247,1746384549002,-500.0,0.00026039,2]
[359866248,1746384549031,-500.0,0.00026039,2]
[359866249,1746384549058,-500.0,0.00026039,2]
[359866250,1746384549085,-500.0,0.00026039,2]
[359866251,1746384549112,-500.0,0.00026039,2]
[359866252,1746384549139,-500.0,0.00026039,2]
[359866253,1746384549167,-500.0,0.00026039,2]
[359866254,1746384549194,-500.0,0.00026039,2]
[359866255,1746384549222,-500.0,0.00026039,2]
[359866256,1746384549250,-500.0,0.00026039,2]
[359866257,1746384549278,-500.0,0.00026039,2]
[359866258,1746384549304,-500.0,0.00026039,2]
[359866259,1746384549332,-550.0,0.00026039,2]
[359866260,1746384549362,-500.0,0.00026039,2]
[359866261,1746384549389,-500.0,0.00026039,2]
[359866262,1746384549416,-500.0,0.00026039,2]
[359866263,1746384549445,-500.0,0.00026039,2]
[359866264,1746384549473,-500.0,0.00026039,2]
[359866265,1746384549502,-500.0,0.00026039,2]
[359866266,1746384549528,-500.0,0.00026039,2]
[359866267,1746384549556,-500.0,0.00026039,2]
[359866268,1746384549583,-500.0,0.00026039,2]
[359866269,1746384549616,-500.0,0.00026039,2]
[359866270,1746384549638,-300.0,0.0002604,2]
[359866271,1746384549660,-1200.0,0.0002604,2]
[359866272,1746384549685,-300.0,0.0002604,2]
[359866273,1746384549708,-500.0,0.0002604,2]
[359866274,1746384549729,-260.73731199,0.0002604,2]
[359866275,1746384549750,-436.38775531,0.0002604,2]
[359866276,1746384549770,-500.0,0.0002604,2]
[359866277,1746384549790,-633.0854751,0.0002604,2]
[359866278,1746384549812,-9301.78196036,0.00026041,2]
[359866279,1746384575662,-200.0,0.00023941,2]
[359866280,1746384579160,-246.9154339,0.00023941,2]
[359866281,1746384584115,-216.01936581,0.00023941,2]
[359866282,1746384588154,-168.91208258,0.00023941,2]
[359866283,1746384591209,-368.15311771,0.00023941,2]
[359866313,1746384631996,-148.52200274,0.00023941,2]
[359866315,1746384632006,-151.0,0.00026039,7]
[359866317,1746384632017,-151.0,0.00026039,7]
[359866319,1746384632026,-605.308716,0.00026039,2]
[359866321,1746384632036,-605.308716,0.00026039,2]
[359866323,1746384632046,-300.0,0.0002604,2]
[359866326,1746384632057,-213.0,0.0002604,2]
[359866328,1746384632068,-1200.0,0.0002604,2]
[359866329,1746384632078,-300.0,0.0002604,2]
[359866331,1746384632088,-151.0,0.00026041,7]
[359866333,1746384632097,-151.0,0.00026041,7]
[359866335,1746384632108,-605.308716,0.00026041,2]
[359866337,1746384632118,-605.308716,0.00026041,2]
[359866340,1746384632128,-399.96678792,0.00026041,2]
[359866343,1746384632140,-7054.69334235,0.00026041,2]
[359866345,1746384632153,-727.10796862,0.00026041,2]
[359866348,1746384632165,-262.60356982,0.00026041,2]
[359866352,1746384632185,-1082.42997683,0.00026041,2]
[359866354,1746384632196,-151.0,0.00026122,7]
[359866357,1746384632206,-151.0,0.00026122,7]
[359866359,1746384632216,-605.308716,0.00026122,2]
[359866360,1746384632226,-605.308716,0.00026122,2]